bitfinex/quotes_ETHUSD_20220202
["timestamp","ask_amount","ask_price","bid_price","bid_amount"]
[1643839130722,0.00549929,2646.5,2646.4,5.29292]
[1643839130919,0.00549929,2646.5,2646.4,5.92683561]
[1643839131319,0.00275477,2647.3,2646.5,5.25]
[1643839131518,0.00275477,2647.3,2647.1,0.63391561]
[1643839131719,0.00275477,2647.8,2647.2,1.39245]
[1643839132117,0.00275477,2648.0,2647.2,1.39245]
[1643839132776,0.00275477,2648.0,2647.2,2.33691]
[1643839132972,0.00275477,2648.0,2647.3,0.00438864]
[1643839133173,0.00275477,2648.2,2647.3,0.00438864]
[1643839133376,0.00275477,2648.2,2647.4,0.63391561]
[1643839133773,1.60302782,2648.3,2647.4,0.63391561]
[1643839133974,2.27981814,2648.3,2647.2,1.58115]
[1643839134172,0.67954509,2648.3,2647.2,1.58115]
[1643839134372,0.67954509,2648.3,2647.4,0.63391561]
[1643839134573,0.00275477,2648.3,2647.4,0.63391561]
[1643839134774,0.00275477,2648.5,2647.6,0.94432]
[1643839134975,1.35282059,2648.6,2647.9,2.2]
[1643839135175,0.01,2649.0,2648.4,0.63391561]
[1643839135176,0.1887,2649.0,2648.4,0.63391561]
[1643839135376,0.1456,2649.5,2648.0,2.45362593]
[1643839135377,0.1456,2649.5,2648.5,1.08191561]
[1643839135378,0.1887,2649.3,2648.5,1.08191561]
[1643839135573,0.01,2649.5,2648.5,1.08191561]
[1643839135574,0.1887,2649.5,2648.5,1.08191561]
[1643839135772,1.09281438,2649.6,2648.5,1.08191561]
[1643839136026,1.09281438,2649.6,2648.9,0.94387]
[1643839136027,0.90411438,2649.6,2648.9,0.94387]
[1643839136223,0.85411438,2649.6,2648.9,1.39187]
[1643839136421,0.00528686,2649.2,2648.7,3.7754932]
[1643839136621,0.00528686,2649.2,2648.8,0.448]
[1643839137022,0.00528686,2649.2,2649.0,0.9439073]
[1643839137421,0.1887,2649.9,2649.0,0.9439073]
[1643839137622,0.00528682,2649.2,2649.0,0.9439073]
[1643839137821,0.00528682,2649.2,2649.0,1.57782291]
[1643839138422,0.02114412,2649.6,2649.1,0.448]
[1643839138725,0.045,2650.0,2649.2,0.94373]
[1643839138923,0.045,2650.0,2649.1,2.33569]
[1643839138924,0.02114412,2649.6,2649.1,1.88769]
[1643839139626,0.02114412,2649.6,2649.3,1.8874736]
[1643839139910,0.045,2650.0,2649.3,2.8313136]
[1643839139911,0.2337,2650.0,2649.3,2.8313136]
[1643839140501,0.045,2650.0,2649.3,2.8313136]
[1643839140698,0.86473807,2650.0,2649.3,2.8313136]
[1643839141001,0.23227253,2649.8,2649.3,2.8313136]
[1643839141202,0.23582675,2649.8,2649.3,2.8313136]
[1643839141403,0.00355422,2649.8,2649.5,0.9437346]
[1643839142000,0.00355422,2649.8,2649.3,2.8313136]
[1643839142001,0.00291343,2649.5,2649.3,2.8313136]
[1643839142201,0.00209243,2649.5,2649.3,2.8313136]
[1643839143619,0.00752382,2649.5,2649.3,2.8313136]
[1643839144023,0.00752382,2649.5,2649.1,3.7752818]
[1643839144519,0.00209243,2649.5,2649.2,0.94384]
[1643839144720,0.00209243,2649.5,2649.2,1.8876298]
[1643839144921,0.0052858,2649.4,2649.2,1.8876298]
[1643839145721,0.00209243,2649.5,2649.2,1.8876298]
[1643839146125,0.0052858,2649.4,2649.2,1.8876298]
[1643839146322,0.0052858,2649.4,2649.3,0.63391561]
[1643839146527,0.00209243,2649.5,2649.3,0.93391561]
[1643839146724,0.00209243,2649.5,2649.3,1.12261561]
[1643839147370,0.04782868,2650.0,2649.5,0.94362]
[1643839147567,0.04782868,2650.0,2649.7,0.94364]
[1643839148170,0.04782868,2650.0,2649.6,0.18133164]
[1643839148568,0.82022561,2649.7,2649.5,3.7745258]
[1643839148767,0.04782868,2650.0,2649.5,3.7745258]
[1643839148768,0.05291549,2650.0,2649.5,3.7745258]
[1643839149770,0.90996452,2649.8,2649.5,3.7745258]
[1643839149970,0.90996452,2649.8,2649.3,1.88758]
[1643839150173,0.90996452,2649.8,2648.5,3.01799]
[1643839150174,3.53350542,2649.8,2648.7,0.1887]
[1643839150370,0.00573531,2649.6,2648.4,0.1887]
[1643839150569,0.00573531,2649.6,2648.3,0.1887]
[1643839150770,0.00573531,2649.6,2648.9,1.88787]
[1643839151022,0.6914925,2649.4,2648.9,1.88787]
[1643839151425,0.87519844,2649.4,2648.9,1.88787]
[1643839151831,0.36608438,2649.1,2648.9,1.88787]
[1643839152024,0.87519844,2649.4,2648.3,0.1887]
[1643839152025,2.55960504,2648.8,2648.3,0.1887]
[1643839152226,2.55960504,2648.8,2648.1,0.9442]
[1643839152725,0.19716633,2648.7,2648.1,0.9442]
[1643839153125,0.200871,2648.7,2648.1,0.9442]
[1643839153325,0.00370467,2648.7,2648.1,0.95706072]
[1643839153525,0.00370467,2648.7,2648.3,0.00552245]
[1643839153725,3.26104123,2648.8,2648.3,0.00552245]
[1643839154328,0.20465243,2648.5,2648.3,0.00552245]
[1643839154780,0.20465243,2648.5,2648.4,0.00552234]
[1643839154982,5.96608438,2648.5,2648.4,2.234e-05]
[1643839155182,6.62749438,2648.5,2648.4,2.234e-05]
[1643839155380,6.45011,2648.5,2648.4,2.234e-05]
[1643839155780,6.81619438,2648.5,2648.4,2.234e-05]
[1643839155981,0.00799192,2648.3,2647.0,0.1887]
[1643839156182,0.37034619,2647.9,2646.9,1.8889701]
[1643839156479,0.84659161,2647.4,2646.9,1.8889701]
[1643839156679,0.84659161,2647.4,2646.6,1.1333825]
[1643839156883,0.85346257,2647.4,2646.6,0.9446825]
[1643839157280,0.19745778,2646.9,2646.6,0.9446825]
[1643839157682,0.85346257,2647.4,2646.8,0.63391561]
[1643839157683,7.096e-05,2647.4,2646.8,0.63391561]
[1643839157883,0.1887,2647.9,2646.9,0.63391561]
[1643839158082,0.18947766,2648.3,2647.1,0.63391561]
[1643839158283,0.00077766,2648.3,2647.1,0.63391561]
[1643839158728,0.20149747,2647.7,2647.4,0.94439]
[1643839158926,0.77788908,2648.0,2647.4,0.94439]
[1643839159129,0.00077766,2648.3,2647.4,2.0774684]
[1643839159327,0.00077766,2648.3,2647.4,1.90036694]
[1643839159531,0.00077766,2648.3,2647.4,1.8887684]
[1643839159728,0.00077766,2648.3,2647.5,0.63391561]
[1643839159929,0.00077766,2648.3,2647.4,1.8887684]
[1643839160130,0.69732779,2648.2,2647.4,1.8887684]
[1643839160332,0.745858,2647.8,2647.4,0.94439]
[1643839160531,0.745858,2647.8,2647.3,1.88877]
[1643839160732,0.01203294,2648.2,2647.7,0.0057421]
[1643839160932,0.00077766,2648.3,2647.7,0.0057421]
[1643839160933,0.18947766,2648.3,2647.7,0.0057421]
[1643839161131,0.1873858,2648.0,2647.7,0.0057421]
[1643839161732,0.00077766,2648.3,2647.6,0.94436]
[1643839161932,0.00077766,2648.3,2647.7,0.950061]
[1643839162140,0.00077766,2648.3,2647.9,0.63391561]
[1643839162372,0.00077766,2648.3,2648.0,0.94423]
[1643839162570,0.00296381,2648.2,2648.1,0.30805976]
[1643839162771,0.00077766,2648.3,2648.2,6.29670145]
[1643839163071,0.00077766,2648.3,2648.2,6.74470145]
[1643839163270,0.00275299,2649.3,2648.3,5.6]
[1643839163271,0.00573967,2649.0,2648.3,5.6]
[1643839163471,0.00573967,2649.0,2648.9,4.53391561]
[1643839163669,0.02295733,2649.2,2649.0,3.45]
[1643839163870,0.02295733,2649.2,2649.1,4.18391561]
[1643839164169,0.01232459,2650.4,2649.1,4.18391561]
[1643839164170,0.20404403,2650.0,2649.4,0.9435948]
[1643839164374,0.20404403,2650.0,2649.9,0.63391561]
[1643839164569,0.20404403,2650.0,2649.5,0.63391561]
[1643839164870,0.00275341,2650.4,2649.3,2.1371895]
[1643839165268,2.11031535,2650.5,2649.3,2.1371895]
[1643839165470,1.59924888,2650.4,2649.6,0.63391561]
[1643839165670,2.07551788,2650.5,2649.8,0.94358]
[1643839165868,0.23625629,2650.0,2649.8,0.94358]
[1643839166122,0.23625629,2650.0,2649.8,0.9435816]
[1643839167025,1.20076161,2650.5,2649.8,0.9435816]
[1643839167227,0.1885,2650.4,2649.8,0.9435816]
[1643839167427,0.00303698,2650.0,2649.8,0.9435816]
[1643839168226,0.00833315,2650.0,2649.7,1.75893598]
[1643839168425,0.00833315,2650.0,2649.9,0.63391561]
[1643839169025,0.00833315,2650.0,2649.9,5.47041561]
[1643839169226,0.00303698,2650.0,2649.9,5.47041561]
[1643839169430,1.01226161,2650.5,2650.0,5.82190418]
[1643839169628,1.03418627,2650.5,2650.4,3.03391561]
[1643839169870,1.03418627,2650.5,2650.4,2.02505021]
[1643839170074,1.03418627,2650.5,2650.4,1.3911346]
[1643839170472,1.03418627,2650.5,2650.4,0.9431346]
[1643839170672,1.03418627,2650.5,2650.2,1.88629]
[1643839170673,0.1360378,2650.3,2650.2,1.88629]
[1643839171575,0.1360378,2650.3,2649.9,3.7735122]
[1643839171772,0.1360378,2650.3,2649.4,3.65266561]
[1643839171773,0.19279254,2650.0,2649.4,3.65266561]
[1643839171971,0.19279254,2650.0,2649.7,0.94357]
[1643839172371,0.19279254,2650.0,2649.2,0.1885]
[1643839172577,0.93033055,2649.9,2649.1,0.63908526]
[1643839172774,0.93033055,2649.9,2649.5,0.63391561]
[1643839172775,1.74033055,2649.9,2649.5,0.63391561]
[1643839173173,0.00532751,2649.7,2649.5,0.63391561]
[1643839174218,0.18902076,2649.9,2649.5,0.63391561]
[1643839174418,0.00377701,2649.7,2649.6,0.63391561]
[1643839175123,0.01510577,2650.1,2649.6,0.63391561]
[1643839175318,0.01510577,2650.1,2649.3,1.8872493]
[1643839175319,0.74121557,2650.2,2649.8,0.63391561]
[1643839175518,0.75632134,2650.2,2649.8,0.63391561]
[1643839175719,0.75632134,2650.2,2649.9,0.63391561]
[1643839175921,0.01510577,2650.2,2649.9,0.63391561]
[1643839176218,0.01510577,2650.2,2650.1,0.63391561]
[1643839176418,0.34689873,2650.3,2650.1,0.63391561]
[1643839176718,2.15570021,2650.2,2650.1,0.63391561]
[1643839177118,2.15570021,2650.2,2649.7,0.94355]
[1643839177119,2.92184242,2650.2,2649.7,0.94355]
[1643839177371,2.15570021,2650.2,2649.9,0.63391561]
[1643839177571,2.15,2650.2,2649.9,0.63391561]
[1643839177775,0.1360378,2650.3,2650.1,0.63391561]
[1643839178973,7.10383596,2650.6,2650.1,2.97713864]
[1643839179174,7.10383596,2650.6,2650.1,2.3344768]
[1643839179372,7.10383596,2650.6,2650.5,0.63391561]
[1643839179773,2.19220171,2650.7,2650.5,0.63391561]
[1643839179976,0.0027524,2651.2,2650.6,2.1745713]
[1643839180175,0.007,2651.3,2651.1,0.63391561]
[1643839180381,0.007,2651.3,2651.1,0.6420457]
[1643839180573,0.007,2651.3,2651.1,0.63391561]
[1643839180775,0.007,2651.3,2651.2,6.048]
[1643839181024,0.007,2651.3,2651.2,7.07580121]
[1643839181224,0.007,2651.3,2651.2,8.38822542]
[1643839181426,0.007,2651.9,2651.3,0.1885]
[1643839181629,0.0027524,2652.2,2651.4,1.448]
[1643839181822,0.0027524,2652.7,2652.1,0.63391561]
[1643839182025,0.0027524,2652.7,2652.4,0.63391561]
[1643839182223,0.0027524,2652.7,2652.5,0.63391561]
[1643839182525,1.22464238,2653.6,2652.5,0.63391561]
[1643839182526,5.24e-05,2653.0,2652.6,0.14642227]
[1643839182726,0.63267791,2654.6,2652.9,1.59622403]
[1643839182928,1.80291238,2655.1,2652.9,1.59622403]
[1643839182929,0.5,2655.1,2654.2,0.58391561]
[1643839183126,0.5,2655.1,2654.0,0.01209602]
[1643839183127,0.1884,2654.8,2654.1,0.448]
[1643839183325,0.19127715,2654.8,2654.7,0.58391561]
[1643839183524,0.5,2655.1,2654.7,0.58391561]
[1643839183723,0.5,2655.1,2655.0,0.53391561]
[1643839183724,0.15,2655.1,2655.0,0.53391561]
[1643839184228,0.05,2655.1,2655.0,0.53391561]
[1643839184422,0.28345236,2655.1,2655.0,0.53391561]
[1643839185283,0.1882,2655.3,2655.1,4.1]
[1643839185483,0.01251396,2656.1,2655.1,4.1]
[1643839185484,0.1882,2656.0,2655.2,0.53391561]
[1643839185681,0.1882,2656.0,2655.3,0.448]
[1643839185682,1.5963145,2655.9,2655.3,0.448]
[1643839185881,1.5963145,2655.9,2655.0,0.448]
[1643839185882,5.68453917,2655.8,2655.0,0.448]
[1643839186080,5.68453917,2655.8,2654.3,0.448]
[1643839186081,0.0128495,2655.5,2654.3,0.448]
[1643839186283,0.1882,2655.4,2654.3,0.448]
[1643839186481,1.98176,2655.4,2653.9,0.448]
[1643839186879,0.00275303,2655.3,2653.9,0.448]
[1643839187077,0.1882,2655.2,2654.1,0.94179]
[1643839187277,0.1882,2655.2,2654.2,0.448]
[1643839187278,0.72269423,2654.9,2654.2,0.448]
[1643839187682,0.00840437,2655.1,2654.2,0.448]
[1643839187880,0.00840437,2655.1,2654.2,0.3]
[1643839188083,0.00840437,2655.1,2654.4,1.8832283]
[1643839188084,0.00565134,2655.1,2654.4,1.8832283]
[1643839188280,0.00565134,2655.1,2654.4,4.60536311]
[1643839188527,0.1883,2656.2,2654.9,0.01289338]
[1643839188826,0.24743559,2655.7,2654.9,0.01289338]
[1643839189028,0.14743559,2655.7,2655.0,0.448]
[1643839189224,0.90298521,2656.0,2655.0,0.448]
[1643839189225,0.1882,2655.9,2655.0,0.448]
[1643839189427,0.02291072,2655.3,2655.2,0.9414383]
[1643839189726,0.1882,2656.6,2655.3,5.25]
[1643839189927,2.00066076,2657.0,2655.4,0.448]
[1643839189928,0.1882,2656.4,2655.4,0.448]
[1643839190126,2.00066076,2657.0,2655.4,0.448]
[1643839190127,0.1882,2656.9,2655.4,0.448]
[1643839190325,0.18795384,2656.2,2655.4,0.448]
[1643839190526,0.90369731,2656.2,2655.4,0.448]
[1643839191526,0.1882,2656.9,2655.4,0.448]
[1643839191726,0.0882,2656.9,2655.6,0.9412619]
[1643839191928,0.1882,2656.9,2655.7,0.448]
[1643839192127,0.1882,2657.1,2655.7,0.448]
[1643839192585,0.18007283,2656.6,2655.7,0.448]
[1643839192783,0.5785222,2657.3,2655.8,0.92639997]
[1643839192784,0.1882,2657.3,2655.8,0.92639997]
[1643839192984,0.1882,2657.5,2656.0,2.8820683]
[1643839193182,1.7877,2658.2,2656.3,0.01200455]
[1643839193183,0.188,2657.8,2656.3,0.01200455]
[1643839193384,1.7877,2658.2,2656.4,0.448]
[1643839193385,0.188,2658.1,2656.4,0.448]
[1643839193783,0.188,2658.1,2656.3,0.20544416]
[1643839193784,0.79413491,2656.9,2656.3,0.188]
[1643839193985,0.74413491,2656.9,2655.9,0.188]
[1643839194185,0.74413491,2656.9,2655.8,0.13819997]
[1643839194382,0.74413491,2656.9,2655.9,0.9412224]
[1643839194584,0.74413491,2656.9,2655.9,1.1294224]
[1643839195084,0.1882,2657.3,2655.9,1.8774224]
[1643839195283,0.21271,2658.2,2656.1,0.01242598]
[1643839195284,0.00552232,2656.5,2656.1,0.01242598]
[1643839195485,0.00552232,2656.5,2656.3,1.8819133]
[1643839195684,0.00552232,2656.5,2656.4,6.1862]
[1643839195887,0.00552232,2656.5,2656.4,7.1862]
[1643839196143,0.19857935,2657.2,2656.4,0.6362]
[1643839196345,0.19857935,2657.2,2656.2,2.070135]
[1643839196542,0.00374829,2656.6,2655.9,0.188]
[1643839196740,0.00374829,2656.6,2655.8,0.32639997]
[1643839197243,0.22832246,2656.4,2655.8,0.32639997]
[1643839197445,0.22832246,2656.4,2655.8,0.1882]
[1643839197643,0.00374829,2656.3,2655.5,0.1882]
[1643839197843,0.00374829,2656.3,2655.3,1.12961]
[1643839198142,0.00374829,2656.3,2655.4,2.3307299]
[1643839198347,0.00374829,2656.3,2655.6,1.88224]
[1643839198545,0.00374829,2656.3,2655.7,0.6362]
[1643839198742,2.20408174,2657.5,2655.7,0.6362]
[1643839198942,0.1882,2657.5,2656.1,0.9411618]
[1643839199143,0.02304468,2656.4,2656.1,0.9411618]
[1643839199544,0.02304468,2656.4,2656.0,1.8823235]
[1643839199772,0.02304468,2656.4,2655.5,2.33024]
[1643839199773,0.02304468,2656.4,2655.5,0.1882]
[1643839199974,0.1882,2656.7,2655.3,0.1882]
[1643839200171,0.1882,2656.7,2654.9,1.86903462]
[1643839200172,0.2389678,2656.1,2654.9,1.86903462]
[1643839200472,0.2389678,2656.1,2655.2,0.0057643]
[1643839200776,0.2389678,2656.1,2654.1,0.01221458]
[1643839200777,5.7882,2656.0,2654.1,0.01221458]
[1643839200974,0.02988905,2655.6,2653.5,3.9814]
[1643839201180,0.1882,2655.5,2653.9,1.0]
[1643839201375,0.0196934,2655.6,2654.0,0.00554742]
[1643839201571,0.00275371,2655.6,2654.4,0.01206353]
[1643839201774,0.18281,2655.6,2654.5,0.1882]
[1643839201973,0.00275371,2655.7,2654.5,0.1882]
[1643839202372,0.17477645,2655.2,2654.5,0.1882]
[1643839202575,0.17753016,2655.2,2654.5,0.1882]
[1643839202778,0.00275371,2655.2,2654.5,0.1882]
[1643839202973,0.00275371,2655.2,2654.2,0.9418128]
[1643839203173,0.00275371,2655.3,2654.2,0.9418128]
[1643839203374,0.24376573,2654.7,2654.2,0.9418128]
[1643839203629,0.00275371,2655.3,2654.3,0.1882]
[1643839203836,0.18281,2655.0,2654.0,0.1882]
[1643839204031,0.18281,2655.0,2653.1,0.448]
[1643839204032,5.6,2654.7,2654.6,0.00565718]
[1643839204230,4.6,2654.6,2653.0,0.13819997]
[1643839204429,4.80761113,2654.6,2653.0,0.13819997]
[1643839204628,4.80761113,2654.6,2653.1,0.1884]
[1643839204629,0.68626823,2653.5,2653.1,0.1884]
[1643839204829,0.68626823,2653.5,2652.9,0.1884]
[1643839204830,0.19038778,2653.4,2652.9,0.1884]
[1643839205032,0.19038778,2653.4,2652.5,0.1884]
[1643839205229,0.19038778,2653.4,2651.9,0.9425]
[1643839205230,0.38360624,2653.4,2651.9,0.9425]
[1643839205431,0.18281,2653.3,2652.0,0.1884]
[1643839205630,0.86633926,2652.7,2652.0,0.1884]
[1643839205829,0.1883662,2653.3,2652.0,0.1884]
[1643839205830,0.18281,2653.0,2652.0,0.1884]
[1643839206032,0.22557121,2652.6,2652.0,0.1884]
[1643839206231,0.00459568,2653.1,2652.0,0.1884]
[1643839206435,2.16708272,2654.4,2652.0,0.1884]
[1643839206436,0.00275371,2652.9,2652.3,5.5937]
[1643839206631,0.00275371,2652.9,2652.4,0.448]
[1643839207031,0.18281,2653.9,2652.4,0.448]
[1643839207032,0.94064912,2653.3,2652.4,0.448]
[1643839207272,0.18281,2653.5,2652.4,2.33253]
[1643839207473,0.01551703,2654.0,2652.4,3.27487]
[1643839207474,0.1884,2653.9,2652.4,3.27487]
[1643839207672,0.00275371,2653.4,2652.4,1.39034]
[1643839207872,0.00275371,2653.4,2652.4,0.448]
[1643839208274,0.78090259,2653.3,2652.4,0.448]
[1643839208674,0.78090259,2653.3,2652.4,0.6364]
[1643839208873,0.00275371,2653.3,2652.8,0.00526341]
[1643839209473,0.53775966,2653.0,2652.8,0.00526341]
[1643839209674,0.53775966,2653.0,2652.3,5.5937]
[1643839209874,1.48616766,2653.0,2652.3,5.5937]
[1643839210073,1.48616766,2653.0,2652.9,0.00536713]
[1643839210474,5.27456766,2653.0,2652.9,0.00536713]
[1643839210676,5.45737766,2653.0,2652.9,0.00536713]
[1643839210875,5.45737766,2653.0,2651.7,0.1884]
[1643839210876,5.75737766,2653.0,2651.7,0.1884]
[1643839211133,2.66067881,2652.9,2651.7,0.1884]
[1643839211329,0.20069874,2652.8,2651.7,0.1884]
[1643839211529,2.66999021,2652.7,2650.8,0.18838]
[1643839211729,0.1885,2652.6,2650.7,0.1885]
[1643839211928,0.18281,2652.5,2650.7,0.1885]
[1643839212126,0.19431228,2651.2,2650.7,0.1885]
[1643839212731,2.68281,2651.1,2650.5,0.7677267]
[1643839212927,2.5,2651.1,2650.5,0.7677267]
[1643839213427,1.05991821,2650.6,2650.5,0.7677267]
[1643839213628,1.05991821,2650.6,2650.5,2.67e-05]
[1643839213629,3.88281,2650.6,2650.5,2.67e-05]
[1643839213828,3.7,2650.6,2650.5,2.67e-05]
[1643839214028,4.07131,2650.6,2650.5,2.67e-05]
[1643839214229,4.37131,2650.6,2650.5,2.67e-05]
[1643839214431,8.07153795,2650.6,2650.5,2.67e-05]
[1643839214627,6.27131,2650.6,2650.5,2.67e-05]
[1643839214877,6.80906966,2650.6,2650.5,2.67e-05]
[1643839215076,0.72625966,2650.6,2650.5,2.67e-05]
[1643839215477,0.72056966,2650.6,2650.5,2.67e-05]
[1643839215676,1.02056966,2650.6,2650.5,2.67e-05]
[1643839216177,0.72056966,2650.6,2650.5,2.67e-05]
[1643839216376,0.72056966,2650.6,2650.5,2.2000267]
[1643839216377,0.53775966,2650.6,2650.5,2.2000267]
[1643839216979,0.53775966,2650.6,2650.5,2.88310003]
[1643839217182,0.1885,2651.6,2650.6,4.3]
[1643839217376,0.18281,2651.7,2650.7,2.62071535]
[1643839217575,0.12406947,2651.8,2650.6,0.748]
[1643839217576,0.18281,2651.6,2650.6,0.748]
[1643839217776,0.18281,2651.6,2650.6,0.448]
[1643839218177,0.18281,2651.6,2650.5,0.1885267]
[1643839218376,0.18281,2651.6,2650.5,2.67e-05]
[1643839218625,0.18281,2651.6,2651.0,0.00577122]
[1643839218825,0.20903636,2651.4,2651.0,0.00577122]
[1643839219025,0.18281,2651.6,2651.0,0.00577122]
[1643839219226,0.1885,2651.7,2651.0,0.00577122]
[1643839219426,0.07406947,2651.8,2651.0,0.00577122]
[1643839219427,0.07406947,2651.8,2651.0,0.448]
[1643839219627,0.07406947,2651.8,2651.2,0.00577107]
[1643839219826,0.07406947,2651.8,2651.3,0.448]
[1643839220035,0.25687947,2651.8,2651.3,0.448]
[1643839220233,0.25687947,2651.8,2651.2,0.00577107]
[1643839220531,0.1385,2651.7,2650.5,2.67e-05]
[1643839220728,0.7059486,2651.5,2650.5,2.67e-05]
[1643839220927,0.1385,2651.7,2651.4,0.00577092]
[1643839221130,0.18281,2651.5,2651.4,0.00577092]
[1643839221728,0.18281,2651.5,2650.5,0.01240777]
[1643839221932,0.23402446,2651.2,2650.5,0.01240777]
[1643839222132,1.12627995,2651.5,2650.5,0.01240777]
[1643839222133,1.12627995,2651.5,2651.3,0.00577096]
[1643839222396,5.33281,2651.4,2651.3,0.00577096]
[1643839222594,6.48061,2651.4,2651.3,0.00577096]
[1643839222797,1.03061,2651.4,2651.3,0.00577096]
[1643839222995,1.03061,2651.4,2650.5,2.67e-05]
[1643839222996,0.1885,2651.5,2650.5,0.4480267]
[1643839223194,0.23029224,2651.3,2650.5,0.4480267]
[1643839223995,0.23029224,2651.3,2650.5,1.26472835]
[1643839224196,0.1886,2652.1,2651.1,1.0]
[1643839224398,0.00438593,2652.9,2652.0,1.01233222]
[1643839224597,0.00275922,2653.0,2652.2,1.0]
[1643839224905,0.00275922,2653.0,2652.8,0.01297852]
[1643839225095,0.09389047,2653.4,2652.9,0.6364]
[1643839225295,0.01207694,2653.7,2653.0,5.6]
[1643839225496,0.19184947,2654.4,2653.4,1.0]
[1643839225497,0.12406947,2654.4,2653.4,1.0]
[1643839225697,0.030179,2655.2,2653.8,5.599]
[1643839225896,0.030179,2655.2,2654.5,5.599]
[1643839226150,21.18905041,2656.5,2654.5,5.599]
[1643839226151,20.30425947,2656.5,2654.9,6.61177151]
[1643839226356,26.03168094,2657.6,2654.9,6.61177151]
[1643839226357,0.1867085,2656.7,2656.3,0.69797583]
[1643839226650,7.1596,2657.6,2656.3,0.69797583]
[1643839226651,0.03017901,2657.3,2656.3,1.6675615]
[1643839226851,0.03017901,2657.3,2656.4,0.748]
[1643839227050,0.03017901,2657.3,2656.4,0.9362]
[1643839227453,0.03017901,2657.3,2656.5,0.94089]
[1643839227650,0.03017901,2657.3,2656.6,0.636]
[1643839227651,0.19653762,2657.1,2656.6,0.636]
[1643839227949,0.03017901,2657.3,2656.6,0.636]
[1643839228152,0.03017901,2657.3,2656.5,0.00398275]
[1643839228153,4.2,2656.9,2656.3,1.6675615]
[1643839228350,0.01222039,2656.8,2656.3,0.448]
[1643839228558,0.188,2656.9,2656.4,0.9411078]
[1643839228750,0.20056232,2657.2,2656.5,0.448]
[1643839229349,0.00375065,2656.8,2656.5,0.448]
[1643839229797,0.00375065,2656.8,2656.3,0.98782538]
[1643839230103,0.00375065,2656.8,2656.4,0.448]
[1643839230298,0.03017901,2657.3,2656.4,0.448]
[1643839230498,0.00375065,2656.7,2656.4,1.3891078]
[1643839230911,0.01500034,2657.1,2656.6,0.18838]
[1643839231100,0.67208094,2659.1,2656.6,0.18838]
[1643839231101,0.01,2659.2,2656.9,6.6]
[1643839231301,0.1881,2659.0,2657.9,0.01207824]
[1643839231500,0.1881,2659.0,2658.0,0.77457997]
[1643839231709,0.1881,2659.0,2658.1,2.0]
[1643839231900,0.1881,2659.0,2658.2,0.448]
[1643839232100,0.1881,2659.0,2658.3,0.188]
[1643839232399,8.2289267,2660.2,2658.7,5.6]
[1643839232400,1.0792267,2660.2,2658.7,5.6]
[1643839232603,1.0792267,2660.2,2658.8,0.448]
[1643839232799,1.0792267,2660.2,2658.9,0.48838]
[1643839233005,1.0792267,2660.2,2659.1,0.01234271]
[1643839233200,1.0792267,2660.2,2659.2,0.63638]
[1643839233399,1.0792267,2660.2,2659.4,1.0]
[1643839233645,1.0792267,2660.2,2659.6,1.0]
[1643839233842,1.0792267,2660.2,2659.7,0.63638]
[1643839234239,1.0792267,2660.2,2659.7,0.448]
[1643839234440,0.00372248,2659.9,2659.7,0.46042083]
[1643839234640,0.00372248,2659.9,2659.7,0.448]
[1643839235244,1.09034457,2659.8,2659.7,0.448]
[1643839235641,1.09034457,2659.8,2659.0,0.1504091]
[1643839235843,1.04034457,2659.8,2659.1,0.448]
[1643839236146,0.00573664,2659.9,2659.4,0.01266944]
[1643839236147,3.664e-05,2659.9,2659.4,0.01266944]
[1643839236343,3.664e-05,2659.9,2659.5,0.448]
[1643839236541,1.0792267,2660.2,2659.5,6.2349]
[1643839236741,1.0792267,2660.2,2659.5,6.047]
[1643839236942,0.18152123,2659.9,2659.6,1.0]
[1643839237148,0.18152123,2659.9,2659.2,3.0673946]
[1643839237407,1.0792267,2660.2,2659.2,3.0673946]
[1643839237408,1.0792267,2660.2,2659.7,0.448]
[1643839237599,1.0792267,2660.2,2659.8,0.448]
[1643839237800,1.0792267,2660.2,2659.9,0.448]
[1643839239198,1.08295626,2660.2,2659.9,0.448]
[1643839239401,0.99999999,2660.0,2659.3,0.448]
[1643839239601,1.08295626,2660.2,2658.6,0.32609997]
[1643839239801,1.08295626,2660.2,2658.7,0.46075412]
[1643839240000,1.0792267,2660.2,2659.3,0.01249789]
[1643839240202,1.0792267,2660.2,2659.9,0.80795715]
[1643839240504,1.0792267,2660.2,2660.0,0.6359]
[1643839240700,1.24649369,2662.1,2660.2,4.3]
[1643839240899,1.24649369,2662.1,2660.3,1.6357]
[1643839240900,0.01135662,2661.8,2660.3,1.6357]
[1643839241131,0.01299369,2662.1,2660.6,0.13864338]
[1643839241132,0.01575138,2662.1,2660.6,0.13864338]
[1643839241334,0.01575138,2662.1,2661.4,0.13864338]
[1643839241335,0.00275769,2662.1,2661.4,0.13864338]
[1643839241536,7.31155769,2662.2,2661.9,0.13864338]
[1643839241732,7.31155769,2662.2,2662.0,0.448]
[1643839241933,7.31155769,2662.2,2662.1,0.448]
[1643839242132,0.19062987,2661.9,2661.8,0.13864338]
[1643839242332,7.31155769,2662.2,2661.6,0.13864338]
[1643839242533,7.31155769,2662.2,2661.7,0.58664338]
[1643839242736,6.11155769,2662.2,2662.0,0.13864338]
[1643839242936,6.11155769,2662.2,2662.1,0.448]
[1643839243136,6.11155769,2662.2,2662.0,0.13864338]
[1643839243334,6.11155769,2662.2,2661.3,2.01203567]
[1643839243335,5.769e-05,2662.2,2662.1,5.998]
[1643839243541,5.769e-05,2662.2,2662.1,6.298]
[1643839243734,5.769e-05,2662.2,2662.1,7.48638]
[1643839244037,1.0792267,2663.4,2662.2,5.55]
[1643839244238,1.0792267,2663.4,2663.0,0.01240416]
[1643839244437,1.0792267,2663.4,2663.1,0.448]
[1643839244638,2.1770729,2663.7,2663.2,3.6]
[1643839244901,2.1770729,2663.7,2663.0,0.01240416]
[1643839244902,2.1770729,2663.7,2663.3,0.448]
[1643839245102,2.0770729,2663.7,2663.0,0.448]
[1643839245299,0.91053849,2663.2,2663.0,0.448]
[1643839245699,0.86053849,2663.2,2662.3,0.13819997]
[1643839245897,2.0770729,2663.7,2662.4,0.448]
[1643839246097,2.0770729,2663.7,2662.5,2.37529411]
[1643839246299,2.0770729,2663.7,2662.6,0.448]
[1643839246898,0.72259477,2663.3,2662.6,0.448]
[1643839247298,0.72535342,2663.3,2662.6,0.448]
[1643839247802,0.00275865,2663.3,2662.6,0.448]